[Event "*** Titled Tuesday 3|2 Blitz"]
[Site "Chess.com"]
[Date "2015.11.03"]
[Round "3"]
[White "Mugzyyy"]
[Black "armago"]
[Result "1-0"]
[WhiteElo "2469"]
[BlackElo "2229"]
[TimeControl "180+2"]
[EndTime "11:36:28 PST"]
[Termination "Mugzyyy won by resignation"]

1. d4 {[%clk 0:02:36.7]} 1... Nf6 {[%clk 0:02:59.7]} 2. c4 {[%clk 0:02:37.7]}
2... g6 {[%clk 0:03:00.5]} 3. g3 {[%clk 0:02:39]} 3... Bg7 {[%clk 0:03:01.1]} 4.
Bg2 {[%clk 0:02:40.3]} 4... O-O {[%clk 0:03:01.6]} 5. f4 {[%clk 0:02:41.2]} 5...
c5 {[%clk 0:02:59]} 6. d5 {[%clk 0:02:41]} 6... e6 {[%clk 0:02:59]} 7. Nc3
{[%clk 0:02:39.9]} 7... exd5 {[%clk 0:02:59.4]} 8. cxd5 {[%clk 0:02:41.6]} 8...
d6 {[%clk 0:02:59.7]} 9. e4 {[%clk 0:02:40.8]} 9... b5 {[%clk 0:02:58.2]} 10. e5
{[%clk 0:02:32.6]} 10... Re8 {[%clk 0:02:52]} 11. Nge2 {[%clk 0:02:27.4]} 11...
dxe5 {[%clk 0:02:29.9]} 12. fxe5 {[%clk 0:02:27.2]} 12... Rxe5 {[%clk
0:02:28.9]} 13. d6 {[%clk 0:02:27.6]} 13... b4 {[%clk 0:02:25.4]} 14. Bf4 {[%clk
0:02:25.5]} 14... Re8 {[%clk 0:02:22.6]} 15. Bxa8 {[%clk 0:02:13.4]} 15... bxc3
{[%clk 0:02:22.8]} 16. O-O {[%clk 0:02:14.6]} 16... cxb2 {[%clk 0:02:18.5]} 17.
Rb1 {[%clk 0:02:15.1]} 17... Ba6 {[%clk 0:02:01.8]} 18. Rxb2 {[%clk 0:02:13.3]}
18... Ng4 {[%clk 0:01:59.4]} 19. Rd2 {[%clk 0:02:05.5]} 19... Nd7 {[%clk
0:01:45.5]} 20. Bc6 {[%clk 0:01:58.9]} 20... c4 {[%clk 0:01:42.9]} 21. Kh1
{[%clk 0:01:45]} 21... c3 {[%clk 0:01:40.9]} 22. Rc2 {[%clk 0:01:45.4]} 22...
Qc8 {[%clk 0:01:34.8]} 23. Bd5 {[%clk 0:01:44.8]} 23... Ndf6 {[%clk 0:01:27.5]}
24. Bg2 {[%clk 0:01:35.3]} 24... Bb7 {[%clk 0:01:23.6]} 25. Rxc3 {[%clk
0:01:31.7]} 25... Qa8 {[%clk 0:01:17.1]} 26. Bxb7 {[%clk 0:01:22.7]} 26... Qxb7+
{[%clk 0:01:17.9]} 27. Rcf3 {[%clk 0:01:24.3]} 27... Ne4 {[%clk 0:01:10.1]} 28.
Qb3 {[%clk 0:01:18.3]} 28... Qc6 {[%clk 0:01:01.7]} 29. h3 {[%clk 0:01:11.9]}
29... Ngf6 {[%clk 0:00:53]} 30. Kh2 {[%clk 0:01:13]} 30... Nxd6 {[%clk
0:00:50.5]} 31. Nd4 {[%clk 0:01:13.3]} 31... Qd7 {[%clk 0:00:44.4]} 32. g4
{[%clk 0:01:03.5]} 32... Nde4 {[%clk 0:00:38.5]} 33. Nb5 {[%clk 0:00:56.9]}
33... Nd2 {[%clk 0:00:26.2]} 34. Bxd2 {[%clk 0:00:57.9]} 34... Qxd2+ {[%clk
0:00:27]} 35. R1f2 {[%clk 0:00:59.6]} 35... Re2 {[%clk 0:00:25.6]} 36. Kg2
{[%clk 0:00:55.8]} 36... h5 {[%clk 0:00:18.8]} 37. gxh5 {[%clk 0:00:48.5]} 37...
gxh5 {[%clk 0:00:16.6]} 38. Qc4 {[%clk 0:00:43.1]} 38... Nd5 {[%clk 0:00:12.3]}
39. Qc8+ {[%clk 0:00:41.2]} 39... Kh7 {[%clk 0:00:08]} 40. Qf5+ {[%clk 0:00:40]}
40... Kh8 {[%clk 0:00:08.5]} 41. Qxh5+ {[%clk 0:00:40.6]} 41... Kg8 {[%clk
0:00:09.4]} 42. Qxf7+ {[%clk 0:00:41.6]} 42... Kh8 {[%clk 0:00:10.8]} 43. Qh5+
{[%clk 0:00:39]} 43... Kg8 {[%clk 0:00:11.1]} 44. Kg1 {[%clk 0:00:19.8]} 44...
Re1+ {[%clk 0:00:08.6]} 45. Rf1 {[%clk 0:00:20.1]} 45... Bd4+ {[%clk 0:00:06.8]}
46. Nxd4 {[%clk 0:00:20.6]} 46... Qxd4+ {[%clk 0:00:07.6]} 47. Rf2 {[%clk
0:00:19.7]} 47... Rxf1+ {[%clk 0:00:07.6]} 48. Kxf1 {[%clk 0:00:20.2]} 48...
Ne3+ {[%clk 0:00:08.6]} 49. Kg1 {[%clk 0:00:18.9]} 49... Qg7+ {[%clk 0:00:07.9]}
50. Kh1 {[%clk 0:00:19.9]} 50... Qb7+ {[%clk 0:00:08.4]} 51. Qf3 {[%clk
0:00:21]} 51... Qb1+ {[%clk 0:00:10]} 52. Kh2 {[%clk 0:00:22.5]} 52... Qb6
{[%clk 0:00:08.4]} 53. Qg3+ {[%clk 0:00:21.6]} 53... Kh7 {[%clk 0:00:07.4]} 54.
Rf7+ {[%clk 0:00:22.2]} 54... Kh6 {[%clk 0:00:08.6]} 55. Qg7+ {[%clk 0:00:23.2]}
55... Kh5 {[%clk 0:00:10]} 56. Qh7+ {[%clk 0:00:22.6]} 56... Kg5 {[%clk
0:00:11.3]} 57. h4+ {[%clk 0:00:23.1]} 57... Kg4 {[%clk 0:00:12.1]} 58. Qe4+
{[%clk 0:00:24.8]} 58... Kh5 {[%clk 0:00:11.5]} 59. Rh7+ {[%clk 0:00:26.4]} 1-0

[Event "*** Titled Tuesday 3|2 Blitz"]
[Site "Chess.com"]
[Date "2015.11.03"]
[Round "3"]
[White "pKiLz5Rn9b"]
[Black "cassoulet"]
[Result "1-0"]
[WhiteElo "2451"]
[BlackElo "2216"]
[TimeControl "180+2"]
[EndTime "11:36:38 PST"]
[Termination "pKiLz5Rn9b won by resignation"]

1. e4 {[%clk 0:03:01.9]} 1... c5 {[%clk 0:03:00.5]} 2. c3 {[%clk 0:03:03.1]}
2... Nf6 {[%clk 0:03:00.1]} 3. e5 {[%clk 0:03:04.4]} 3... Nd5 {[%clk 0:03:01.1]}
4. d4 {[%clk 0:03:06]} 4... cxd4 {[%clk 0:03:01.6]} 5. cxd4 {[%clk 0:03:07.9]}
5... d6 {[%clk 0:03:02.2]} 6. Nf3 {[%clk 0:03:09.2]} 6... Nc6 {[%clk 0:03:02.5]}
7. Bc4 {[%clk 0:03:10.2]} 7... Nb6 {[%clk 0:03:03.6]} 8. Bb5 {[%clk 0:03:11.7]}
8... dxe5 {[%clk 0:03:04.6]} 9. Nxe5 {[%clk 0:03:13.2]} 9... Bd7 {[%clk
0:03:05.7]} 10. Nxd7 {[%clk 0:03:14.5]} 10... Qxd7 {[%clk 0:03:06.5]} 11. Nc3
{[%clk 0:03:16.2]} 11... e6 {[%clk 0:03:07.7]} 12. O-O {[%clk 0:03:17.8]} 12...
Rd8 {[%clk 0:03:05.4]} 13. a4 {[%clk 0:03:13.4]} 13... Qxd4 {[%clk 0:03:03.1]}
14. Qxd4 {[%clk 0:03:07.4]} 14... Rxd4 {[%clk 0:03:05]} 15. a5 {[%clk
0:02:29.3]} 15... Nd7 {[%clk 0:02:32.5]} 16. a6 {[%clk 0:02:26.2]} 16... Ncb8
{[%clk 0:02:19.8]} 17. axb7 {[%clk 0:02:25.1]} 17... Bd6 {[%clk 0:02:06.7]} 18.
Be3 {[%clk 0:02:20]} 18... Rb4 {[%clk 0:02:07]} 19. Rfd1 {[%clk 0:02:17.8]}
19... Ke7 {[%clk 0:02:04.6]} 20. Bxa7 {[%clk 0:02:15.6]} 20... Rxb2 {[%clk
0:02:01]} 21. Rab1 {[%clk 0:02:11]} 21... Rxb1 {[%clk 0:01:59.9]} 22. Rxb1
{[%clk 0:02:11.9]} 22... Bc5 {[%clk 0:02:00]} 23. Bxd7 {[%clk 0:01:48.7]} 23...
Bxa7 {[%clk 0:01:58.2]} 24. Bb5 {[%clk 0:01:31.3]} 24... Rd8 {[%clk 0:01:58.6]}
25. Kf1 {[%clk 0:01:30.4]} 25... Rd2 {[%clk 0:01:57.5]} 26. Ne4 {[%clk
0:01:29.3]} 26... Rd4 {[%clk 0:01:56.3]} 27. f3 {[%clk 0:01:09.3]} 27... f5
{[%clk 0:01:52]} 28. Nc3 {[%clk 0:00:59]} 28... Rd2 {[%clk 0:01:50.9]} 29. Ne2
{[%clk 0:00:56.6]} 29... e5 {[%clk 0:01:46.4]} 30. Ke1 {[%clk 0:00:55.4]} 30...
Rc2 {[%clk 0:01:43.9]} 31. Bd3 {[%clk 0:00:53.8]} 31... Rc7 {[%clk 0:01:39.3]}
32. Bxf5 {[%clk 0:00:54.4]} 32... g6 {[%clk 0:01:40.8]} 33. Be4 {[%clk
0:00:55.6]} 33... Nd7 {[%clk 0:01:41.8]} 34. Ra1 {[%clk 0:00:53.8]} 34... Bb8
{[%clk 0:01:39.5]} 35. Ra8 {[%clk 0:00:49.3]} 35... Kd6 {[%clk 0:01:40.5]} 36.
Kd2 {[%clk 0:00:41.5]} 36... Rc4 {[%clk 0:01:40.9]} 37. Nc3 {[%clk 0:00:37]}
37... Rb4 {[%clk 0:01:37.6]} 38. Ra6+ {[%clk 0:00:35.9]} 38... Kc7 {[%clk
0:01:21.9]} 39. Nd5+ {[%clk 0:00:35]} 39... Kxb7 {[%clk 0:01:22.9]} 40. Nxb4+
{[%clk 0:00:36.2]} 40... Kc7 {[%clk 0:01:24.1]} 41. Rc6+ {[%clk 0:00:36.4]}
41... Kd8 {[%clk 0:01:25.1]} 42. Nd5 {[%clk 0:00:36.4]} 42... Ba7 {[%clk
0:01:25.8]} 43. Bc2 {[%clk 0:00:29.2]} 43... Bd4 {[%clk 0:01:23.8]} 44. Rc4
{[%clk 0:00:26.6]} 44... Nc5 {[%clk 0:01:23]} 45. Nc3 {[%clk 0:00:27.2]} 45...
Ne6 {[%clk 0:01:22.8]} 46. Ne4 {[%clk 0:00:27.4]} 46... Ke7 {[%clk 0:01:22.8]}
47. g3 {[%clk 0:00:27.3]} 47... Bg1 {[%clk 0:01:22.7]} 48. h4 {[%clk 0:00:26.6]}
48... Nd4 {[%clk 0:01:23.3]} 49. Bd1 {[%clk 0:00:27.7]} 49... Ke6 {[%clk
0:01:23.3]} 50. Ra4 {[%clk 0:00:28.2]} 50... Nf5 {[%clk 0:01:22.7]} 51. Ng5+
{[%clk 0:00:22.7]} 51... Kd5 {[%clk 0:01:22.4]} 52. Bb3+ {[%clk 0:00:22.5]}
52... Kc5 {[%clk 0:01:23.2]} 53. Ne4+ {[%clk 0:00:22.7]} 53... Kb5 {[%clk
0:01:23.9]} 54. Ra1 {[%clk 0:00:20.9]} 54... Bd4 {[%clk 0:01:22.6]} 55. Rb1
{[%clk 0:00:18.9]} 55... Kc6 {[%clk 0:01:22.1]} 56. Bg8 {[%clk 0:00:20.1]} 56...
h6 {[%clk 0:01:22.6]} 57. Bh7 {[%clk 0:00:21.3]} 57... Ne7 {[%clk 0:01:23.1]}
58. Rc1+ {[%clk 0:00:22.2]} 58... Kd7 {[%clk 0:01:23.8]} 59. Kd3 {[%clk
0:00:23.5]} 59... Ke6 {[%clk 0:01:23.7]} 60. h5 {[%clk 0:00:22.2]} 60... gxh5
{[%clk 0:01:24.2]} 61. Rh1 {[%clk 0:00:23.8]} 61... Kf7 {[%clk 0:01:17.4]} 62.
Rxh5 {[%clk 0:00:23.4]} 62... Kg7 {[%clk 0:01:18.3]} 63. Bf5 {[%clk 0:00:23.3]}
63... Nd5 {[%clk 0:01:15.2]} 64. Be6 {[%clk 0:00:21.1]} 64... Nb4+ {[%clk
0:01:13]} 65. Kc4 {[%clk 0:00:22.3]} 65... Nc2 {[%clk 0:01:14]} 66. f4 {[%clk
0:00:20.1]} 66... exf4 {[%clk 0:01:13.6]} 67. gxf4 {[%clk 0:00:20.9]} 67... Bf6
{[%clk 0:01:14]} 68. Nxf6 {[%clk 0:00:19.6]} 68... Kxf6 {[%clk 0:01:15]} 69. f5
{[%clk 0:00:21.2]} 69... Ne3+ {[%clk 0:01:15.1]} 70. Kd3 {[%clk 0:00:17.6]}
70... Ng4 {[%clk 0:01:14.6]} 71. Rh4 {[%clk 0:00:17.3]} 71... Ne5+ {[%clk
0:01:14.2]} 72. Ke4 {[%clk 0:00:18.4]} 72... Kg5 {[%clk 0:01:10.6]} 73. Kxe5
{[%clk 0:00:18.8]} 73... Kxh4 {[%clk 0:01:11.7]} 74. f6 {[%clk 0:00:20.4]} 1-0

[Event "*** Titled Tuesday 3|2 Blitz"]
[Site "Chess.com"]
[Date "2015.11.03"]
[Round "3"]
[White "Chopper1905"]
[Black "vellottiwizard"]
[Result "1-0"]
[WhiteElo "2544"]
[BlackElo "2338"]
[TimeControl "180+2"]
[EndTime "11:37:58 PST"]
[Termination "Chopper1905 won by resignation"]

1. Nf3 {[%clk 0:03:01.9]} 1... Nf6 {[%clk 0:03:00.4]} 2. c4 {[%clk 0:03:02.5]}
2... e6 {[%clk 0:03:01.2]} 3. g3 {[%clk 0:03:02.7]} 3... a6 {[%clk 0:03:02.2]}
4. Bg2 {[%clk 0:03:01.7]} 4... b5 {[%clk 0:03:02.8]} 5. b3 {[%clk 0:03:00.6]}
5... c5 {[%clk 0:03:03.6]} 6. O-O {[%clk 0:03:00.8]} 6... Bb7 {[%clk 0:03:04]}
7. Nc3 {[%clk 0:03:02.4]} 7... Qb6 {[%clk 0:03:04.4]} 8. e3 {[%clk 0:03:03.9]}
8... Be7 {[%clk 0:03:04.4]} 9. d4 {[%clk 0:03:04.1]} 9... O-O {[%clk 0:02:55.6]}
10. d5 {[%clk 0:03:05]} 10... exd5 {[%clk 0:02:55.1]} 11. cxd5 {[%clk
0:03:06.9]} 11... d6 {[%clk 0:02:54.7]} 12. e4 {[%clk 0:03:07.2]} 12... Nbd7
{[%clk 0:02:52.2]} 13. h3 {[%clk 0:03:07.5]} 13... Rfe8 {[%clk 0:02:51.2]} 14.
Be3 {[%clk 0:03:08.4]} 14... Bf8 {[%clk 0:02:51.3]} 15. Nd2 {[%clk 0:03:10]}
15... g6 {[%clk 0:02:49.9]} 16. Qc2 {[%clk 0:03:08.4]} 16... Bg7 {[%clk
0:02:50.4]} 17. Rab1 {[%clk 0:03:04.1]} 17... Rac8 {[%clk 0:02:50.7]} 18. a4
{[%clk 0:03:02.2]} 18... Qa5 {[%clk 0:02:39.1]} 19. Rfc1 {[%clk 0:02:56.7]}
19... Ne5 {[%clk 0:02:22.6]} 20. Ra1 {[%clk 0:02:38.4]} 20... Qb6 {[%clk
0:01:50.3]} 21. Rab1 {[%clk 0:02:37.9]} 21... Qa5 {[%clk 0:01:50.8]} 22. f4
{[%clk 0:02:28.3]} 22... Ned7 {[%clk 0:01:51.3]} 23. Bf2 {[%clk 0:02:29.2]}
23... Rb8 {[%clk 0:01:42.1]} 24. Ra1 {[%clk 0:02:28.4]} 24... Qb6 {[%clk
0:01:41.3]} 25. b4 {[%clk 0:02:25.8]} 25... Rec8 {[%clk 0:01:41.6]} 26. axb5
{[%clk 0:02:22.1]} 26... axb5 {[%clk 0:01:40.7]} 27. Nb3 {[%clk 0:02:23]} 27...
Qd8 {[%clk 0:01:25.8]} 28. bxc5 {[%clk 0:02:23.1]} 28... b4 {[%clk 0:01:08]} 29.
Nb5 {[%clk 0:02:03.2]} 29... dxc5 {[%clk 0:01:07.3]} 30. Nd6 {[%clk 0:02:02.6]}
30... c4 {[%clk 0:00:44.5]} 31. Na5 {[%clk 0:01:42.5]} 31... b3 {[%clk
0:00:38.6]} 32. Qe2 {[%clk 0:01:43.5]} 32... b2 {[%clk 0:00:37.3]} 33. Naxb7
{[%clk 0:01:43.1]} 33... bxa1=Q {[%clk 0:00:36.2]} 34. Rxa1 {[%clk 0:01:44.6]}
34... Qc7 {[%clk 0:00:31]} 35. Nxc8 {[%clk 0:01:33.9]} 35... Rxc8 {[%clk
0:00:23.3]} 36. Ra7 {[%clk 0:01:09.8]} 36... c3 {[%clk 0:00:24.2]} 37. Na5
{[%clk 0:01:08]} 37... Qb8 {[%clk 0:00:15.3]} 38. Nc6 {[%clk 0:01:07.6]} 38...
Qb1+ {[%clk 0:00:13.9]} 39. Qf1 {[%clk 0:01:01.1]} 39... c2 {[%clk 0:00:14.1]}
40. Ra1 {[%clk 0:01:02.6]} 40... Qxf1+ {[%clk 0:00:06.8]} 41. Rxf1 {[%clk
0:01:04.5]} 41... Kf8 {[%clk 0:00:07.7]} 42. Rc1 {[%clk 0:01:03.4]} 42... Nb8
{[%clk 0:00:07.6]} 43. e5 {[%clk 0:00:59.4]} 43... Nxd5 {[%clk 0:00:07.3]} 44.
Bxd5 {[%clk 0:00:54.2]} 44... Nxc6 {[%clk 0:00:07.6]} 45. Rxc2 {[%clk
0:00:55.2]} 45... Ne7 {[%clk 0:00:09.2]} 46. Rxc8+ {[%clk 0:00:54.6]} 46... Nxc8
{[%clk 0:00:11.1]} 47. Bc5+ {[%clk 0:00:55.7]} 47... Ne7 {[%clk 0:00:11.3]} 48.
Bc6 {[%clk 0:00:55.8]} 48... h5 {[%clk 0:00:10.2]} 49. Kg2 {[%clk 0:00:56.1]}
49... f6 {[%clk 0:00:11.2]} 50. e6 {[%clk 0:00:55.2]} 50... f5 {[%clk
0:00:12.3]} 51. Kf3 {[%clk 0:00:54.6]} 51... Bf6 {[%clk 0:00:13.7]} 52. Bb5
{[%clk 0:00:52.8]} 52... Kg7 {[%clk 0:00:14.9]} 53. Ke3 {[%clk 0:00:48.9]} 53...
Ng8 {[%clk 0:00:15.6]} 54. Kd3 {[%clk 0:00:49.7]} 54... Be7 {[%clk 0:00:16.7]}
55. Bd4+ {[%clk 0:00:50.3]} 55... Bf6 {[%clk 0:00:17.5]} 56. Bf2 {[%clk
0:00:51.9]} 56... Kf8 {[%clk 0:00:18.5]} 57. Kc4 {[%clk 0:00:51.9]} 57... Be7
{[%clk 0:00:19.5]} 58. Bc6 {[%clk 0:00:49.3]} 58... Bf6 {[%clk 0:00:20.1]} 59.
Kb5 {[%clk 0:00:46]} 59... Be7 {[%clk 0:00:20.9]} 60. Kb6 {[%clk 0:00:47.4]}
60... Bd6 {[%clk 0:00:21.8]} 61. Bd5 {[%clk 0:00:45.7]} 61... Ne7 {[%clk
0:00:22]} 62. Bc4 {[%clk 0:00:43.1]} 62... Ng8 {[%clk 0:00:22.6]} 63. Kc6 {[%clk
0:00:44]} 63... Be7 {[%clk 0:00:23.6]} 64. Bd4 {[%clk 0:00:40.9]} 64... Ke8
{[%clk 0:00:22.6]} 65. Bb5 {[%clk 0:00:40.4]} 65... Kf8 {[%clk 0:00:23.5]} 66.
Be5 {[%clk 0:00:33.3]} 66... h4 {[%clk 0:00:18.4]} 67. g4 {[%clk 0:00:29.4]}
67... fxg4 {[%clk 0:00:17.7]} 68. hxg4 {[%clk 0:00:31.3]} 68... g5 {[%clk
0:00:17.7]} 69. Be2 {[%clk 0:00:22.7]} 69... gxf4 {[%clk 0:00:16.7]} 70. Bxf4
{[%clk 0:00:24.6]} 70... Kg7 {[%clk 0:00:17.6]} 71. Kd7 {[%clk 0:00:20.9]} 71...
Kg6 {[%clk 0:00:16.9]} 72. Bd3+ {[%clk 0:00:21.7]} 72... Kg7 {[%clk 0:00:17.8]}
73. g5 {[%clk 0:00:23.2]} 73... h3 {[%clk 0:00:15.8]} 74. Bf5 {[%clk 0:00:23.4]}
74... h2 {[%clk 0:00:16.3]} 75. Be4 {[%clk 0:00:24.5]} 75... Kf8 {[%clk
0:00:17.1]} 76. Bf3 {[%clk 0:00:23.6]} 76... Kg7 {[%clk 0:00:17.3]} 77. Ke8
{[%clk 0:00:24.7]} 77... Kg6 {[%clk 0:00:15.4]} 78. Be4+ {[%clk 0:00:22.8]}
78... Kg7 {[%clk 0:00:16.4]} 79. Be5+ {[%clk 0:00:23]} 79... Bf6 {[%clk
0:00:13.6]} 80. gxf6+ {[%clk 0:00:22.8]} 1-0

[Event "*** Titled Tuesday 3|2 Blitz"]
[Site "Chess.com"]
[Date "2015.11.03"]
[Round "3"]
[White "Baggio95"]
[Black "jbj"]
[Result "1-0"]
[WhiteElo "2393"]
[BlackElo "2283"]
[TimeControl "180+2"]
[EndTime "11:38:20 PST"]
[Termination "Baggio95 won by resignation"]

1. e4 {[%clk 0:03:01.1]} 1... e6 {[%clk 0:03:01.2]} 2. d4 {[%clk 0:03:01.6]}
2... d5 {[%clk 0:03:02.8]} 3. Nc3 {[%clk 0:03:03]} 3... Bb4 {[%clk 0:03:03.4]}
4. e5 {[%clk 0:03:03.3]} 4... c5 {[%clk 0:03:04.8]} 5. a3 {[%clk 0:03:03.9]}
5... Bxc3+ {[%clk 0:03:05.8]} 6. bxc3 {[%clk 0:03:05.5]} 6... Ne7 {[%clk
0:03:07.5]} 7. Qg4 {[%clk 0:03:05.5]} 7... Qc7 {[%clk 0:03:08.1]} 8. Bd3 {[%clk
0:03:04.8]} 8... c4 {[%clk 0:03:07.7]} 9. Be2 {[%clk 0:03:03.6]} 9... Nf5 {[%clk
0:03:09]} 10. Bd1 {[%clk 0:02:58.5]} 10... h5 {[%clk 0:03:09.2]} 11. Qf4 {[%clk
0:02:51.3]} 11... Nc6 {[%clk 0:03:08.4]} 12. Ne2 {[%clk 0:02:49.4]} 12... f6
{[%clk 0:03:04.3]} 13. exf6 {[%clk 0:02:47.2]} 13... Qxf4 {[%clk 0:03:02.1]} 14.
Nxf4 {[%clk 0:02:47.3]} 14... gxf6 {[%clk 0:03:00.7]} 15. Bxh5+ {[%clk
0:02:37.3]} 15... Kd8 {[%clk 0:02:50.9]} 16. Bg4 {[%clk 0:02:30.5]} 16... Nce7
{[%clk 0:02:37.5]} 17. Ne2 {[%clk 0:01:45.6]} 17... Nh4 {[%clk 0:02:32.3]} 18.
g3 {[%clk 0:01:35.9]} 18... f5 {[%clk 0:02:31.8]} 19. gxh4 {[%clk 0:01:33.8]}
19... fxg4 {[%clk 0:02:32.7]} 20. Bg5 {[%clk 0:01:35.1]} 20... Ke8 {[%clk
0:02:33.4]} 21. Ng3 {[%clk 0:01:31.1]} 21... Ng6 {[%clk 0:02:32.3]} 22. h5
{[%clk 0:01:30.1]} 22... Nf8 {[%clk 0:02:23.4]} 23. Kf1 {[%clk 0:01:12.5]} 23...
Nh7 {[%clk 0:02:22.5]} 24. Bf4 {[%clk 0:01:11.4]} 24... Rf8 {[%clk 0:02:21.9]}
25. Be5 {[%clk 0:01:08]} 25... Ng5 {[%clk 0:02:18.6]} 26. Re1 {[%clk 0:01:07.1]}
26... Nf3 {[%clk 0:02:15.9]} 27. Re2 {[%clk 0:01:07.5]} 27... Kf7 {[%clk
0:01:58.6]} 28. h3 {[%clk 0:01:07.9]} 28... Rg8 {[%clk 0:01:35.8]} 29. hxg4
{[%clk 0:01:08.2]} 29... Rxg4 {[%clk 0:01:37.1]} 30. h6 {[%clk 0:01:09.3]} 30...
Bd7 {[%clk 0:01:34.8]} 31. h7 {[%clk 0:01:08.5]} 31... Nxe5 {[%clk 0:01:33.7]}
32. h8=Q {[%clk 0:01:07.4]} 32... Rxh8 {[%clk 0:01:32]} 33. Rxh8 {[%clk
0:01:08.1]} 33... Ng6 {[%clk 0:01:21]} 34. Rh7+ {[%clk 0:01:08.8]} 34... Ke8
{[%clk 0:01:21.6]} 35. Rg7 {[%clk 0:01:09]} 35... Ne5 {[%clk 0:01:13.7]} 36.
Rxg4 {[%clk 0:01:02.6]} 36... Nxg4 {[%clk 0:01:15.6]} 37. f3 {[%clk 0:01:03.3]}
37... Nf6 {[%clk 0:01:15.2]} 38. Rh2 {[%clk 0:01:04.2]} 38... Kd8 {[%clk
0:01:13.6]} 39. Ke1 {[%clk 0:01:05.1]} 39... Kc7 {[%clk 0:01:14.3]} 40. Rh6
{[%clk 0:01:04.7]} 40... Ne8 {[%clk 0:01:15.3]} 41. Kd2 {[%clk 0:01:04.6]} 41...
Nd6 {[%clk 0:01:16.4]} 42. Rh7 {[%clk 0:01:04]} 42... Nb5 {[%clk 0:01:15]} 43.
Nh5 {[%clk 0:01:00.9]} 43... Kc8 {[%clk 0:01:05.2]} 44. Nf6 {[%clk 0:00:59.8]}
44... Bc6 {[%clk 0:01:06.3]} 45. a4 {[%clk 0:00:56.4]} 45... Nd6 {[%clk
0:01:05.9]} 46. a5 {[%clk 0:00:56.9]} 46... Kd8 {[%clk 0:00:57.3]} 47. Ng4
{[%clk 0:00:49.7]} 47... Nc8 {[%clk 0:00:27.7]} 48. Ne5 {[%clk 0:00:50.1]} 48...
Bb5 {[%clk 0:00:26.9]} 49. Rxb7 {[%clk 0:00:48.6]} 49... a6 {[%clk 0:00:17.4]}
50. Rh7 {[%clk 0:00:42.7]} 50... Ke8 {[%clk 0:00:16.3]} 51. Kc1 {[%clk
0:00:42.8]} 51... Nd6 {[%clk 0:00:16.6]} 52. Kb2 {[%clk 0:00:43.5]} 52... Nf5
{[%clk 0:00:14.5]} 53. Ng4 {[%clk 0:00:40.2]} 53... Kd8 {[%clk 0:00:13.1]} 54.
Ka3 {[%clk 0:00:40.3]} 54... Ng3 {[%clk 0:00:12.3]} 55. Kb4 {[%clk 0:00:35.8]}
55... Ne2 {[%clk 0:00:12.1]} 56. Ne5 {[%clk 0:00:33.3]} 56... Nc1 {[%clk
0:00:11]} 57. Kc5 {[%clk 0:00:32.4]} 57... Na2 {[%clk 0:00:09.3]} 58. Kd6 {[%clk
0:00:32.1]} 58... Kc8 {[%clk 0:00:08.4]} 59. Kxe6 {[%clk 0:00:30.6]} 59... Nxc3
{[%clk 0:00:08.9]} 60. f4 {[%clk 0:00:30]} 60... Ne4 {[%clk 0:00:06.6]} 61. f5
{[%clk 0:00:28]} 61... Ng5+ {[%clk 0:00:07.2]} 62. Kf6 {[%clk 0:00:26.3]} 62...
Nxh7+ {[%clk 0:00:09.1]} 63. Ke6 {[%clk 0:00:20.5]} 63... Ng5+ {[%clk
0:00:09.3]} 64. Kxd5 {[%clk 0:00:21.5]} 64... c3 {[%clk 0:00:10.6]} 65. f6
{[%clk 0:00:21]} 65... Kd8 {[%clk 0:00:11.5]} 66. Nc6+ {[%clk 0:00:19.7]} 66...
Ke8 {[%clk 0:00:11]} 67. Ne5 {[%clk 0:00:19.3]} 67... Nf7 {[%clk 0:00:11.2]} 68.
Kc5 {[%clk 0:00:19.9]} 68... Nd8 {[%clk 0:00:06.8]} 69. Kb4 {[%clk 0:00:19.9]}
69... Ne6 {[%clk 0:00:05.4]} 70. Kxc3 {[%clk 0:00:20.6]} 70... Ng5 {[%clk
0:00:06.7]} 71. Kb4 {[%clk 0:00:20.6]} 71... Ne4 {[%clk 0:00:08]} 72. f7+ {[%clk
0:00:19.3]} 72... Ke7 {[%clk 0:00:08.1]} 73. c4 {[%clk 0:00:19.4]} 73... Bxc4
{[%clk 0:00:04.1]} 74. Kxc4 {[%clk 0:00:18.8]} 74... Nd6+ {[%clk 0:00:04.3]} 75.
Kc5 {[%clk 0:00:19.4]} 75... Nc8 {[%clk 0:00:05.6]} 76. Kc6 {[%clk 0:00:18.8]}
76... Na7+ {[%clk 0:00:05.2]} 77. Kb6 {[%clk 0:00:18.1]} 77... Nb5 {[%clk
0:00:06.2]} 78. d5 {[%clk 0:00:19.5]} 78... Nd6 {[%clk 0:00:04.1]} 79. Kxa6
{[%clk 0:00:20.1]} 79... Nc8 {[%clk 0:00:05.2]} 80. Kb7 {[%clk 0:00:19.9]} 80...
Nd6+ {[%clk 0:00:07.1]} 81. Kb8 {[%clk 0:00:20.8]} 81... Nb5 {[%clk 0:00:08.1]}
82. a6 {[%clk 0:00:21.3]} 82... Kf8 {[%clk 0:00:08.9]} 83. a7 {[%clk 0:00:21.6]}
83... Nxa7 {[%clk 0:00:10.8]} 1-0